Workbook

Sheet Cover Page
D1: Add company logo
N2: Version 20.1
B8: Add photo
N13: Notes:
N14: This template may require adjustments by individual operators to meet specific reporting requirements as defined in the site Permit(s)
B29: Annual Performance Report 2020
B31: Permit EPR/FP3134GU and UP3005LJ
B33: Ardley Energy Recovery Facility
B37: VIRIDOR OXFORDSHIRE LIMITED
B39: Year: | C39: 2020
B41: Address: | C41: Ardley ERF, Middleton Stoney Road, Ardley, Oxon, OX27 7AA
B43: Tel: | C43: 07788178544
B45: Email: | C45: HEdwards1@viridor.co.uk
B47: Prepared by: | C47: Helen Edwards | F47: Position: | G47: EHS Manager
B49: Approved by: | C49: Philip Eyre | F49: Position: | G49: Head of Operations (S)
B51: Version: | C51: 1
B53: Issue Date: | C53: 2021-03-31

Sheet Contents
A1: =+'Cover Page'!$B$29 -> Annual Performance Report 2020 | E1: =+'Cover Page'!$B$33 -> Ardley Energy Recovery Facility
A3: Contents | K3: Notes:
A4: Section | B4: Subject | H4: Page | K4: Section references and Page nos. to be inserted
B5: Facility Information | H5: 3 | K5: Sections and Subjects may require adjustment by individual operators to meet specific reporting requirements as defined in the sites Permit(s)
B6: Operational Summary | H6: 5
A7: 4.2.2(b)(c ) | B7: Operational Data | H7: 4
A8: 4.2.2(b)(c ) | B8: Performance Form 1 | H8: 6
A9: 4.2.2(b)(c ) | B9: Energy Form 1 | H9: 7
B10: Permit Compliance | H10: 8
B11: Improvements | H11: 9
B12: Public Liaison | H12: 10
A13: 4.2.3 (a) | B13: Residue Quality - Optional | H13: 11
A14: 4.2.3 | B14: Emissions to Water | H14: 12
A15: 4.2.3 | B15: Emissions to Air (periodically monitored) | H15: 13
A16: 4.2.3 | B16: Emissions to Air (continuously monitored) | H16: 14
B17: Hydrogen Chloride emissions | H17: 15
B18: Sulphur Dioxide emissions | H18: 16
B19: Oxides of Nitrogen emissions | H19: 17
B20: Total Organic Carbon emissions | H20: 18
B21: Particulate Matter emissions | H21: 19
B22: Carbon Monoxide emissions | H22: 20
A25: Version Control
A26: Section | B26: Information | H26: Date
A33: Distribution
A34: Copy | B34: Name, Role | H34: No.
A43: This report is required under the Industrial Emissions Directive’s Article 55(2) requirements on reporting and public information on waste incineration plants and co-incineration plants, which require the operator to produce an annual report on the functioning and monitoring of the plant and make it available to the public.

Sheet Facility Info
A1: =+'Cover Page'!$B$29 -> Annual Performance Report 2020 | E1: =+'Cover Page'!$B$33 -> Ardley Energy Recovery Facility
A3: Plant Description and Design | K3: Notes:
A5: Ardley Energy from Waste (EFW) facility is located close to junction 10 of the M40. The facility has a design capacity to process 300,000 tonnes per year of residual municipal waste and has the capability of exporting 26.9MW of electricity. In accordance with the requirements of Condition 4.2.3, Schedule 4 and Table S5.1 of Permit EPR/FP3134GU issued by Environment Agency to Viridor Waste Management Limited (Viridor) on 29 September 2010, Viridor is required to submit a summary of the environmental monitoring works undertaken at the site on a quarterly basis. Such reports will form the basis of the annual environmental review report, which is to be submitted to the Environment Agency by 31 March as agreed in writing with the Environment Agency of each year in accordance with Condition 4.2.2 of the Permit. Viridor note, in line with Permit variation dated 21 April 2015; 30 minute carbon monoxide (CO) average monitoring was replaced with CO 10 minute average monitoring. This report summarises the environmental and performance data collected at the site 1st January – 31st December 2020 and fulfils the requirement of Chapter IV Article 55(2) of the Industrial Emissions Directive. On the 18th December 2020 permit FP3134GU for Viridor Waste Management Limited was transferred in full to Viridor Oxfordshire Limited under an updated permit reference of UP3005LJ. | K5: Include summary of plant design, design capacity, no. of combustion lines, electrical and heat capacity and any other general information that describes the facility, its location and purpose
A20: Summary of Operational Processes and Procedures
A22: Incoming waste is mainly received Oxfordshire County Council Waste Partnership, the rest is received from third party businesses. Waste is received into an enclosed waste bunker. The waste is loaded into one of two furnaces, which combust the waste at >850°C. The hot gases are put through a variety of heat exchangers used to heat demineralised water to create superheated steam which drives a turbine generator. The turbine generator produces around 30MWh and exports around 26MWh. Combusted waste (incinerator bottom ash) is sent to a third party within the footprint of the facility for further processing. The gasses are treated with Lime, Activated carbon and Urea to remove potential pollution leaving the stack. The powder containing reacted gas particulates (APCr) is removed and sent via a third party for reprocessing. Emissions are monitored via Continuous Emissions Monitoring equipment (CEMs) provided by A1-CBISS. | K22: Include summary of key processes and procedures such as (but not limited to); waste reception, control rooms, grate, bed and boiler, energy & heat generation, cooling systems, residue management, emission controls, health and safety systems, maintenance

Sheet Operational Data
A1: =+'Cover Page'!$B$29 -> Annual Performance Report 2020 | E1: =+'Cover Page'!$B$33 -> Ardley Energy Recovery Facility
A3: Operational Data | K3: Notes:
A4: Plant Size | B4: 326300 | D4: tonnes pa | F4: MWth | H4: MWe | K4: * - RDF to include SRF
A5: No. of combustion lines | B5: 2 | D5: No. of Turbines: | F5: 1 | K5: ** - CHP plants only
K6: 2020 updates include; heat in MWh, water in Litres, NCV in MJ/kg
A7: Waste types received | B7: Unit | C7: Q1 | D7: Q2 | E7: Q3 | F7: Q4 | G7: Year Total | H7: %
A8: Household / Local Authority | B8: tonnes | C8: 53371.48 | D8: 58204.89 | E8: 54544.85 | F8: 48212.54 | G8: =SUM(C8:F8) -> 214333.76 | H8: =IF(G8>0,G8/$G$18,"-") -> 0.7389204896 | K8: Availability Definition: 'the availability of a line is to be calculated by the number of hours the line reported Continuously Monitored emission levels to the Regulator through the calendar year divided by the total number of hours in that year. The overall plant availability is calculated as the Mean of all lines in the plant. For clarity this includes periods of Other Than Normal Operating Conditions (OTNOC) and abnormal operation.' Rationale: The primary function of an Energy from Waste facility is the disposal of waste. It follows therefore that the availability of a plant is determined by the period of time a facility spends undertaking this activity.
A9: Commercial & Industrial | C9: 22892.52 | D9: 19561.59 | E9: 19207.52 | F9: 14067.97 | G9: =SUM(C9:F9) -> 75729.6 | H9: 0.2610795104
A10: Hazardous | C10: - | D10: - | E10: - | F10: - | G10: 0 | H10: -
A11: Clinical | C11: - | D11: - | E11: - | F11: - | G11: 0 | H11: -
A12: Waste wood (biomass) | C12: - | D12: - | E12: - | F12: - | G12: 0 | H12: -
A13: Refuse Derived Fuel * - H'hold/LA | C13: - | D13: - | E13: - | F13: - | G13: =SUM(C13:F13) -> 0 | H13: -
A14: Refuse Derived Fuel * - C&I | C14: - | D14: - | E14: - | F14: - | G14: 0 | H14: -
A15: Other [Please specify] | C15: - | D15: - | E15: - | F15: - | G15: 0 | H15: -
A16: Other [Please specify] | C16: - | D16: - | E16: - | F16: -
A17: Other [Please specify] | C17: - | D17: - | E17: - | F17: -
A18: Total waste combusted | C18: =SUM(C8:C17) -> 76264 | D18: =SUM(D8:D17) -> 77766.48 | E18: =SUM(E8:E17) -> 73752.37 | F18: =SUM(F8:F17) -> 62280.51 | G18: =SUM(G8:G17) -> 290063.36 | H18: =IF(G18>0,G18/$G$18,"-") -> 1
A19: Rejected Waste | C19: 0 | D19: 0 | E19: 0 | F19: 0 | G19: =SUM(C19:F19) -> 0 | H19: =IF(G19>0,G19/$G$18,"-") -> -
A20: Unprocessed waste transferred out | C20: - | D20: - | E20: - | F20: - | G20: =SUM(C20:F20) -> 0 | H20: =IF(G20>0,G20/$G$18,"-") -> -
A22: Energy Usage / Export | B22: Unit | C22: Q1 | D22: Q2 | E22: Q3 | F22: Q4 | G22: Year Total | H22: KWh/te
A23: Power Generated | B23: MWh | C23: 37516 | D23: 58637 | E23: 57398 | F23: 30596 | G23: =SUM(C23:F23) -> 184147 | H23: =IF(G23>0,G23*1000/$G$18,"-") -> 634.8509512
A24: Power Exported | C24: 33545 | D24: 52006 | E24: 50636 | F24: 27027 | G24: =SUM(C24:F24) -> 163214 | H24: =IF(G24>0,G24*1000/$G$18,"-") -> 562.6839598
A25: Power Used on site | C25: 6422 | D25: 6681 | E25: 6866 | F25: 5705 | G25: =SUM(C25:F25) -> 25674 | H25: 88.5116962
A26: Power Imported | C26: 2451 | D26: 50 | E26: 104 | F26: 2136 | G26: 4741 | H26: 16.34470483
A27: Parasitic Load | B27: % | C27: =IF(C23>0,1-C24/(C23+C26),"-") -> 0.1606825631 | D27: =IF(D23>0,1-D24/(D23+D26),"-") -> 0.1138412255 | E27: 0.1194045425 | F27: 0.1742942686 | G27: 0.1359218161
A28: Thermal Energy Produced ** | B28: MWh | C28: - | D28: - | E28: - | F28: - | G28: =SUM(C28:F28) -> 0 | H28: -
A29: Thermal Energy Exported ** | C29: - | D29: - | E29: - | F29: - | G29: 0 | H29: -
A30: R1 value | C30: Subject to confirmation | G30: Design / Operational / n/a
A32: Waste Disposal & Recovery | B32: Unit | C32: Q1 | D32: Q2 | E32: Q3 | F32: Q4 | G32: Year Total | H32: % inputs
A33: APC Residues - produced | B33: tonnes | C33: 1771 | D33: 1791 | E33: 1722 | F33: 1265 | G33: =SUM(C33:F33) -> 6549 | H33: =IF(G33>0,G33/$G$18,"-") -> 0.02257782576
A34: IBA - produced | C34: 11500 | D34: 13241 | E34: 11727 | F34: 13090 | G34: 49558 | H34: =IF(G34>0,G34/$G$18,"-") -> 0.1708523269
A35: Metals recycling | C35: 1477.66 | D35: 1493.54 | E35: 1569.06 | F35: 1272.8 | G35: =SUM(C35:F35) -> 5813.06 | H35: =IF(G35>0,G35/$G$18,"-") -> 0.02004065594
A37: Raw Material Usage | B37: Unit | C37: Q1 | D37: Q2 | E37: Q3 | F37: Q4 | G37: Year Total | H37: kg or Ltr /te
A38: Mains Water | B38: ltrs | C38: =(6693*1000) -> 6693000 | D38: =(10236*1000) -> 10236000 | E38: =(10481*1000) -> 10481000 | F38: =(7770*1000) -> 7770000 | G38: =SUM(C38:F38) -> 35180000 | H38: =IF(G38>0,G38/$G$18,"-") -> 121.2838464
A39: Other Water | B39: ltrs | C39: - | D39: - | E39: - | F39: - | G39: 0 | H39: =IF(G39>0,G39/$G$18,"-") -> -
A40: Urea | B40: kgs | C40: 89000 | D40: 103000 | E40: 100000 | F40: 75000 | G40: =SUM(C40:F40) -> 367000 | H40: =IF(G40>0,G40/$G$18,"-") -> 1.265240808
A41: Activated Carbon | B41: kgs | C41: 16720 | D41: 17240 | E41: 17720 | F41: 15200 | G41: 66880 | H41: =IF(G41>0,G41/$G$18,"-") -> 0.230570314
A42: Lime / hydrated lime | B42: kgs | C42: 983650 | D42: 1074670 | E42: 986600 | F42: 681600 | G42: 3726520 | H42: 12.84726206
A43: Fuel oil | B43: ltrs | C43: =111.17*1000 -> 111170 | D43: 158730 | E43: 149150 | F43: 219610 | G43: 638660 | H43: 2.201794808
A44: Gas | B44: cf | C44: 0 | D44: 0 | E44: 0 | F44: 0 | G44: 0
A46: Summary | B46: Line/Unit | C46: Q1 | D46: Q2 | E46: Q3 | F46: Q4 | G46: Year Total | J46: Hrs in year
A47: Availability of waste combustion by line, hrs | B47: 1 | C47: 2062 | D47: 2088 | E47: 1893 | F47: 1623 | G47: =SUM(C47:F47) -> 7666 | H47: =(G47/J47) -> 0.872723133 | J47: 8784 | K47: leap year
B48: 2 | C48: 2047 | D48: 2004 | E48: 2184 | F48: 1634 | G48: 7869 | H48: =(G48/J47) -> 0.8958333333
A49: Overall Availability, mean avg. of all lines, hrs | C49: =AVERAGE(C47:C48) -> 2054.5 | D49: =AVERAGE(D47:D48) -> 2046 | E49: 2038.5 | F49: 1628.5 | G49: =AVERAGE(G47:G48) -> 7767.5 | H49: =(G49/J47) -> 0.8842782332
A50: Hours of turbine operations, hrs | B50: 1 | C50: =2184-885 -> 1299 | D50: =2184-15.25 -> 2168.75 | E50: =2208-35.25 -> 2172.75 | F50: 1183 | G50: 6823.5 | H50: =(G50/J47) -> 0.7768101093
A51: Hours of heat / steam export | C51: - | D51: - | E51: - | F51: - | G51: 0 | H51: =IF(B51>0,#REF!/J47,"n/a") -> n/a
A52: Net Calorific Value of waste | B52: MJ/kg | C52: 5.8 | D52: 5.8 | E52: 5.8 | F52: 5.8 | H52: -
A53: Abnormal Events | B53: qty. | C53: 0 | D53: 0 | E53: 0 | F53: 0 | G53: 0 | H53: =IF(G53>0,"yes","no") -> no
A54: Abnormal operation | B54: hours | C54: 0 | D54: 0 | E54: 0 | F54: 0 | G54: 0 | H54: =+(G54)/J47 -> 0
A55: Permit Breaches | B55: qty. | C55: 0 | D55: 0 | E55: 1 | F55: 0 | G55: 1 | H55: =IF(G55>0,"yes","no") -> yes

Sheet Operational Summary
A1: =+'Cover Page'!$B$29 -> Annual Performance Report 2020 | E1: =+'Cover Page'!$B$33 -> Ardley Energy Recovery Facility
A3: Summary of Plant Operations and Maintenance during the reporting year | K3: Notes:
A5: Following the loss of generation capability reported in 2019, The generator returned to Ardley on 23 January 2020 and began export 6 February 2020. The plant operated steadily throughout the year of 2020 with 2033 hrs off burning waste across both lines including the annual shutdown outage period. The annual shutdown outage for 2020 commenced on 11 October 2020 concluding on 10 November 2020 during which the plant combustion systems and FGT and ancillary systems underwent checks, and as required repair, and legal compliance inspections under PSSR were carried out. The shutdown had been planned for June 2020 but was delayed due to the ongoing pandemic, due to the deferral of the scheduled maintenance period there were a number of short stoppages for maintenance and repair Following the outage period on 06 November 2020 during start up of the second line, the site suffered a turbine trip due to a pump failure and condensate ingress into the turbine casing. Following thorough inspection and cleaning there was no damage found and the turbine was returrned to service. Generation recommenced on 02 December 2020. Ardley ERF notes that the calculated parasitic load for the facility in this report incorporates imported energy wheras the calculation applied internally is Power Generated – Power Exported. If this formula is applied then the overall parasitic load for Ardley in 2020 is 11.4% rather than 13.6% shown in the operational data. In September the plant successfully underwent continuation audits of ISO9001, ISO14001 and ISO45001. The CEMS underwent QAL2 calibration checks in June 2020 and the calibration factors were applied. | K5: Include summary of key operational and/or maintenance activity undertaken in the year, such as any major component upgrades and/or replacements
A29: Summary of Residue Handling for the reporting year
A31: All IBA produced on site (including the metal content) is conveyed to the Fortis IBA facility, based within the footprint of Ardley ERF, for reprocessing. They remove and recycle the ferrous and non-ferrous metals and then create IBAA (Incinerator Bottom Ash Aggregate) from the remaining material. Their Aggregates team then utilise this in various construction and highways projects. There have been no hazardous results from IBA testing in 2020. APCr is collected by direct transfer from the on site silo into transport tanker by Grundons and goes to one of three reprocesses or for disposal. APCr to the O.C.O Technology Ltd (formally Carbon8) site at Brandon (EPR/JP3332FK), Anonmouth (EPR/HP3638WW), or Leeds (EPR/TP3737YG) is taken through their accelerated carbonation technology. These carbonated wastes are blended with binders and fillers and pelletised to form an aggregate. APCr sent to Grundon APCr plant at Wingmoor Farm landfill site, Gloucestershire (EPR/NP3831ST) is mixed with water before it is transferred to a hazardous waste cell in the landfill.

Sheet Perf. Form 1
A1: =+'Cover Page'!C39 -> 2020 | B1: Annual Reporting Performance Form 1
A3: =+'Cover Page'!B31 -> Permit EPR/FP3134GU and UP3005LJ | F3: Operator: | G3: =+'Cover Page'!B37:I37 -> 0
A4: Facility: | B4: =+'Cover Page'!B33:I33 -> Ardley Energy Recovery Facility | F4: Form: | G4: Performance 1
A6: Reporting Period from: | D6: 2020-01-01 | F6: to: | G6: 2020-12-31
A8: =+A1 -> 2020 | B8: Annual Reporting of Waste Disposal and Recovery
A9: Waste Description | C9: Disposal Route(s) | E9: Disposal Tonnes | G9: Recovery Tonnes | I9: % / tonne of waste incinerated
A10: 1) Hazardous Wastes
A11: APC Residues | C11: OCO Technology | G11: 5548.86 | I11: =IF((E11+G11)>0,(E11+G11)/'Operational Data'!$G$18, "-") -> 0.01912982046
A12: APC Residues | C12: Grundon | E12: 1037.62 | I12: =IF((E12+G12)>0,(E12+G12)/'Operational Data'!$G$18, "-") -> 0.003577218439
I13: =IF((E13+G13)>0,(E13+G13)/'Operational Data'!$G$18, "-") -> -
I14: =IF((E14+G14)>0,(E14+G14)/'Operational Data'!$G$18, "-") -> -
A15: Total Hazardous Waste | E15: =SUM(E11:F14) -> 1037.62 | G15: =SUM(G11:H14) -> 5548.86 | I15: =IF((E15+G15)>0,(E15+G15)/'Operational Data'!$G$18, "-") -> 0.0227070389
A17: 2) Non-Hazardous Wastes
A18: IBA | C18: Fortis IBA | G18: 49558 | I18: =IF((E18+G18)>0,(E18+G18)/'Operational Data'!$G$18, "-") -> 0.1708523269
A19: Ferrous Metal | C19: VRM | G19: 5813.06 | I19: =IF((E19+G19)>0,(E19+G19)/'Operational Data'!$G$18, "-") -> 0.02004065594
A20: Total Non-Hazardous Waste | E20: =SUM(E18:F19) -> 0 | G20: =SUM(G18:H19) -> 55371.06 | I20: =IF((E20+G20)>0,(E20+G20)/'Operational Data'!$G$18, "-") -> 0.1908929828
A21: TOTAL WASTE | E21: =+E20+E15 -> 1037.62 | G21: =+G20+G15 -> 60919.92 | I21: =IF((E21+G21)>0,(E21+G21)/'Operational Data'!$G$18, "-") -> 0.2136000217
A23: Operator’s comments :
A24: All IBA produced on site (including the metal content) is reprocessed by Fortis IBA who separate the ferrous and non-ferrous metals to return to Ardley ERF ownership and create IBAA (Incinerator Bottom Ash Aggregate) from the remaining material. Metals returned to Ardley ERF ownership are managed through Viridor Resource Management for recycling. APCr is taken either through OCO Technologies accelerated carbonation technology where carbonated wastes are blended with binders and fillers and pelletised to form an aggregate, or are send to Hazardous waste landfill.
A28: =+A1 -> 2020 | B28: Annual Reporting of Water and Other Raw Material Usage
A29: Raw Material | E29: Usage | G29: Unit | H29: Specific Usage | J29: Unit
A30: Mains Water | E30: =+'Operational Data'!G38 -> 35180000 | G30: m3 | H30: =IF(E30>0,E30/'Operational Data'!$G$18/1000,"-") -> 0.1212838464 | J30: m3/te
A31: Total Water | E31: =+'Operational Data'!G39+'Operational Data'!G38 -> 35180000 | G31: m3 | H31: =IF(E31>0,E31/'Operational Data'!$G$18/1000,"-") -> 0.1212838464 | J31: m3/te
A32: Urea / Ammonia | E32: =+'Operational Data'!G40 -> 367000 | G32: kg | H32: =IF(E32>0,E32/'Operational Data'!$G$18,"-") -> 1.265240808 | J32: kg/te
A33: Activated Carbon | E33: =+'Operational Data'!G41 -> 66880 | G33: kg | H33: =IF(E33>0,E33/'Operational Data'!$G$18,"-") -> 0.230570314 | J33: kg/te
A34: Lime / hydrated lime / Sodium Bicarb. | E34: =+'Operational Data'!G42 -> 3726520 | G34: kg | H34: =IF(E34>0,E34/'Operational Data'!$G$18,"-") -> 12.84726206 | J34: kg/te
A36: Operator’s comments :
A37: Raw Materials Usage reviewed 26 May 2020. Water reported in litres in operational data, converted to m3 for specific usage
A40: =+A28 -> 2020 | B40: Annual Reporting of other performance indicators
A41: Parameter | C41: Results by Line
C42: A1 | D42: A2 | E42: A3 | F42: A4 | G42: A5 | I42: Turbine 1 | J42: Turbine 2
A43: Operating hours for the year, hours | C43: ='Operational Data'!G47 -> 7666 | D43: ='Operational Data'!G48 -> 7869 | I43: ='Operational Data'!G50 -> 6823.5
A44: Number of periods of abnormal operation, qty. | C44: 0 | D44: 0 | I44: 0
A45: Cumulative hours of abnormal operation for this year, hours | C45: 0 | D45: 0 | I45: 0
A47: Operator’s comments :
A51: Signed: | B51: H. Edwards | G51: Date: | H51: 2021-03-24

Sheet Energy Form 1
A1: =+'Cover Page'!C39 -> 2020 | B1: Annual Reporting of Energy Usage/Export
A3: =+'Cover Page'!B31 -> Permit EPR/FP3134GU and UP3005LJ | F3: Operator: | G3: =+'Cover Page'!B37:I37 -> 0
A5: Facility: | B5: =+'Cover Page'!B33:I33 -> Ardley Energy Recovery Facility | F5: Form: | G5: Energy 1
A7: Reporting Period from: | D7: =+'Perf. Form 1'!D6:E6 -> 2020-01-01 | F7: to: | G7: =+'Perf. Form 1'!G6:H6 -> 2020-12-31
A9: Energy Source | D9: Energy Usage | F9: Unit | G9: Specific Useage (KWh/tonne incinerated
A10: Electricity Produced | D10: =+'Operational Data'!G23 -> 184147 | F10: MWh | G10: =+'Operational Data'!H23 -> 634.8509512
A11: Electricity Imported | D11: =+'Operational Data'!G26 -> 4741 | F11: MWh | G11: =+'Operational Data'!H26 -> 16.34470483
A12: Electricity Exported | D12: =+'Operational Data'!G24 -> 163214 | F12: MWh | G12: =+'Operational Data'!H24 -> 562.6839598
A13: Gas Oil | D13: =('Operational Data'!G43*0.85)/1000 -> 542.861 | F13: tonnes
A14: Steam/hot water exported | D14: =+'Operational Data'!G29 -> 0 | F14: GWh
A18: Operator’s comments :
A19: Mass diesel (gas oil) calculated with density = 0.85 kg/l (tonnes=(litres fuel oil used*0.85)/1000))
A29: Signed: | B29: H.Edwards | G29: Date: | H29: 2021-03-24

Sheet Permit Compliance
A1: =+'Cover Page'!$B$29 -> Annual Performance Report 2020 | E1: =+'Cover Page'!$B$33 -> Ardley Energy Recovery Facility
A3: Summary of Permit Compliance
A5: Compliance with permit limits for continuously monitored pollutants
A7: The plant met its emission limits as shown in the table below:
A8: Substance | C8: Percentage time compliant during operation | L8: Notes:
C9: Half-hourly limit | F9: Daily limit | L9: Report to 2 decimal places, i.e. xx.xx% Please provide a brief summary of each notification or non-compliance in the table (rather than just referring to notifications that were sent to the Regulator).
A10: Particulates | C10: 1 | F10: 1
A11: Oxides of nitrogen | C11: 1 | F11: 1
A12: Sulphur dioxide | C12: 1 | F12: 1
A13: Carbon monoxide | C13: 100% 95% of 10-min averages | F13: 1
A14: Total organic carbon | C14: 0.99997 | F14: 1
A15: Hydrogen chloride | C15: 1 | F15: 1
A16: Hydrogen fluoride | C16: 1 | F16: 1
A17: 1/2 hourly % = (No. half hour exceedance / (2 x 15535)) x 100, 15,535hrs running during year across 2 lines
A18: Daily % = (No.Daily exceedance / (No. operational hours/24)) x 100
A19: Summary of any notifications or non-compliances under the permit
A20: Date | B20: Summary of notification or non-compliance | E20: Reason | H20: Measures taken to prevent reoccurrence
A21: 2020-08-02 | B21: An elevated half hour average (13:30pm – 13:59pm) of Total Organic Carbon (TOC) was recorded with a measurement of 20.16 mg/m3 (Half hour permit limit 20 mg/m3) from emission point A2. | E21: The rise in TOC’s is believed to be linked to mature waste towards the bottom of the stockpile. | H21: In line with the Ardley Business Continuity Plan for Covid 19, increased waste levels were held in the bunker ahead of predicted collections disruption. Waste levels returned to normal operational levels as the national restrictions were lifted and the site transitioned away from emergency Business Continuity Measures.
A23: Summary of any complaints received and actions to taken to resolve them.
A24: Date | B24: Summary of complaint | E24: Reason * | H24: Measures taken to prevent reoccurrence
A25: 26/08/2020 14:31pm | B25: Compliant received via EA of "a mild smell of burning plastic in Bucknell starting at 10.20 am on Sunday 23/08/20. The caller states the wind direction was coming from the incinerator." | E25: Unable to substantiate due to time elapsed between complaint and reporting. Investigation undertaken and found no basis for complaint. Plant under normal operation. | H25: No further actions taken.

Sheet Improvements
A1: =+'Cover Page'!$B$29 -> Annual Performance Report 2020 | E1: =+'Cover Page'!$B$33 -> Ardley Energy Recovery Facility
A3: Summary of Plant Improvements
A5: Summary of any efficiency improvements that have been completed within the year.
A6: Use of Raw Materials Review undertaken in May 2020 Avoidance, Recovery and Disposal of Waste Review undertaken in June 2020 Combined Heat and Power Review undertaken in July 2020
A16: Summary of any permit improvement conditions that have been completed within the year and the resulting environmental benefits.
A17: All Improvement Conditions associated with Ardley Energy Recovery Facility's Environmental Permit EPR/FP3134GU were completed prior to the calendar year of 2020.
A27: Summary of any changes to the plant or operating techniques which required a variation to the permit and a summary of the resulting environmental impact.
A28: No changes to the plant or operating techniques which required a variation to the Permit were undertaken during the review period of 2020.
A38: Summary of any other improvements made to the plant or planned to be made and a summary of the resulting environmental benefits.
A39: None

Sheet Public Liasion
A1: =+'Cover Page'!$B$29 -> Annual Performance Report 2020 | E1: =+'Cover Page'!$B$33 -> Ardley Energy Recovery Facility
A3: Details of Public & Stakeholder Liaison
A5: Summary of events held during the reporting year.
A6: Date | C6: Description
A7: January, September | C7: Public Liaison Meetings scheduled for councillors and residents of Middleton Stoney, Ardley & fewcott
A9: Bi-Annually | C9: Waste Collection Authority Meetings
A11: Online event | C11: Heritage Open Days - online events reaching 3106 individuals to date
A13: Online event | C13: Community engagements. A community talk was hosted online with 319 views to date. A webinar for a community group reached 28 households.
A15: As requested | C15: Environment Agency visits and site tours - as requested
A17: Note: due to Covid 19 restrictions, site visitor centre activities have been adapted from previous years.
A20: List of events planned for next year
A21: Date | C21: Description
C22: As above. With the easing of Covid 19 restrictions it is hoped that Visitor Centre activities will recommence in 2021. Dates for this have not been confirmed.
A25: If you wish to be involved in the public liaison programme, please contact Jessica Baker- Pike 01869 876747

Sheet Residue Quality
A1: =+'Cover Page'!$B$29 -> Annual Performance Report 2020 | E1: =+'Cover Page'!$B$33 -> Ardley Energy Recovery Facility
A3: Residue Quality Monitoring Requirements
A5: Summary of monitoring undertaken and compliance
A6: IBA undergoes quarterly sampling as required by permit condition 3.5.1c and table 4.4 including TOC (separate lines), dioxins & furans and metals. TOC has a limit of <3%.
A8: 24 samples of IBA are taken each year (including the 4 permit compliance samples) to undergo basic hazard analysis as required by the ESA protocol.
A10: APCr is sampled quarterly as per permit condition 3.5.1c and table 4.5
A13: Commentary on any specific events
A14: Date & Event | C14: Description
A27: Residue Quality Monitoring Results
A28: Parameter (unit) | C28: Limit | D28: Normal Operation
D29: Bottom ash | F29: APC Residues
A30: Loss on Ignition (average %) | C30: -
A31: Total Organic Carbon (average %) | C31: <3% | D31: 1.43
A32: No. of Assessments Undertaken | C32: --- | D32: 4 Permit compliance samples 24 ESA hazard assessment - (including 4 above). | F32: 4
A33: No. of Hazardous Results | C33: --- | D33: 0
A35: Comments :
A36: All IBA remained non-hazardous as per the ESA protocol within 2020. TOC Value above is average of the four quarters of samples on each line (8 samples).

Sheet Water
A1: =+'Cover Page'!$B$29 -> Annual Performance Report 2020 | E1: =+'Cover Page'!$B$33 -> Ardley Energy Recovery Facility
A3: Emissions to Water
A5: Summary of monitoring undertaken and compliance
A6: Permit Condition 3.5.1(a) and Table S4.2 requires Viridor to ensure sample point W1 is free of oil and grease.
A8: Sample point W1 has remained free of oil and grease. No Permit limit exceedances were recorded for W1 during the review period for emissions to water.
A13: Commentary on any specific events
A14: Date & Event | C14: Description
A22: Emissions to Water / Sewer
A23: Parameter | D23: Monitoring Frequency | G23: Limit | H23: Target | I23: Max. | J23: Average
A24: Oil & Grease | D24: Not set | G24: free of oil and grease | H24: - | I24: - | J24: -

Sheet Air (periodic)
A1: =+'Cover Page'!$B$29 -> Annual Performance Report 2020 | E1: =+'Cover Page'!$B$33 -> Ardley Energy Recovery Facility
A3: Emissions to Air (periodically monitored)
A5: Summary of monitoring undertaken, standards used and compliance | M5: Notes:
A6: All analysis below completed by permit specified BS EN method other than nitrous oxide which was completed by allowed alternative method M22. Monitoring was undertaken in April and November 2020. | M6: Template may require adjustment for any bespoke monitoring requirements of permit.
A9: Results of emissions to air that are periodically monitored
A10: Substance | C10: Ref. Period | D10: Emission Limit Value | F10: Average H1 | I10: Average H2 | M10: User to add additional tables as necessary, depending on whether quarterly or bi-annual reporting is required for the compliance year
F11: L1 | G11: L2 | I11: L1 | J11: L2
A12: Nitrous Oxide | C12: 1hr | D12: - | F12: 30.2 | G12: 22.6 | I12: 21.5 | J12: 21.48
A13: Hydrogen fluoride | D13: 1 mg/m3 | F13: <0.03 | G13: <0.03 | I13: <0.027 | J13: <0.030
A14: Cd and Th and their compounds | C14: Maximum 8 hours | D14: 0.05 mg/m3 | F14: <0.001 | G14: <0.001 | I14: 0.0015 | J14: <0.0010
A15: Hg and its compounds | D15: 0.05 mg/m3 | F15: 0.009 | G15: 0.0178 | I15: 0.0023 | J15: 0.0037
A16: Sb, As, Pb, Cr, Co, Cu, Mn, Ni, V and their compounds | D16: 0.5 mg/m3 | F16: 0.011 | G16: 0.0105 | I16: 0.046 | J16: 0.21
A17: Dioxins & Furans (I-TEQ) | C17: 6-8hrs | D17: 0.1 ng/m3 | F17: 0.01412 | G17: 0.003 | I17: 0.0019 | J17: 0.0024
A18: PCBs (WHO-TEQ Humans / Mammals) | D18: None set ng/m3 | F18: 0.001112 | G18: 0.000177 | I18: 0.00025 | J18: 0.00033
A19: PCBs (WHO-TEQ Fish) | D19: None set ng/m3 | F19: 5.3e-05 | G19: 1e-05 | I19: 1.3e-05 | J19: 1.5e-05
A20: PCBs (WHO-TEQ Birds) | D20: None set ng/m3 | F20: 0.002254 | G20: 0.000663 | I20: 0.00071 | J20: 0.00065
A21: Anthanthrene | D21: None set µg/m3 | F21: <0.00056 | G21: <0.0008 | I21: <0.00090 | J21: <0.00059
A22: Benzo(a)anthracene | D22: None set µg/m3 | F22: <0.00056 | G22: 0.0008 | I22: <0.00090 | J22: <0.00059
A23: Benzo(a)pyrene | D23: None set µg/m3 | F23: <0.00056 | G23: <0.0008 | I23: <0.00090 | J23: <0.00059
A24: Benzo(b)fluoranthene | D24: None set µg/m3 | F24: <0.00056 | G24: <0.0008 | I24: <0.00090 | J24: <0.00059
A25: Benzo(b)naptho(2,1-d) thiophene | D25: None set µg/m3 | F25: 0.00146 | G25: 0.0045 | I25: <0.00090 | J25: <0.00059
A26: Benzo(c)phenanthrene | D26: None set µg/m3 | F26: <0.00056 | G26: <0.0008 | I26: <0.00090 | J26: <0.00059
A27: Benzo(ghi)perylene | D27: None set µg/m3 | F27: 0.00067 | G27: <0.0008 | I27: <0.00090 | J27: <0.00059
A28: Benzo(k)fluoranthene | D28: None set µg/m3 | F28: <0.00056 | G28: <0.0008 | I28: <0.00090 | J28: <0.00059
A29: Cholanthrene | D29: None set µg/m3 | F29: <0.00056 | G29: <0.0008 | I29: <0.00090 | J29: <0.00059
A30: Chrysene | D30: None set µg/m3 | F30: 0.00146 | G30: 0.0022 | I30: <0.00090 | J30: <0.00059
A31: Cyclopenta(cd)pyrene | D31: None set µg/m3 | F31: <0.00056 | G31: <0.0008 | I31: <0.00090 | J31: <0.00059
A32: Dibenzo(ai)pyrene | D32: None set µg/m3 | F32: <0.00056 | G32: <0.0008 | I32: <0.00090 | J32: <0.00059
A33: Dibenzo(ah)anthracene | D33: None set µg/m3 | F33: <0.00056 | G33: <0.0008 | I33: <0.00090 | J33: <0.00059
A34: Fluoranthene | D34: None set µg/m3 | F34: 0.01651 | G34: 0.012 | I34: 0.0084 | J34: 0.0066
A35: Indeno(123-cd) pyrene | D35: None set µg/m3 | F35: <0.00056 | G35: <0.0008 | I35: <0.00090 | J35: <0.00059
A36: Naphthalene | D36: None set µg/m3 | F36: 0.247 | G36: 0.3424 | I36: 0.44 | J36: 0.4
A37: Comments :
A38: All results returned within limits.

Sheet Air (CEMS)
A1: =+'Cover Page'!$B$29 -> Annual Performance Report 2020
A3: Emissions to Air (continuously monitored)
P4: Notes:
A5: Summary of monitoring undertaken, standards used and compliance | P5: Template may require adjustment for any bespoke monitoring requirements of permit
A6: The monitoring standards utilised during this testing conformed to those stipulated within Table S4.1 of the Permit. | P6: Report to 2 decimal places, i.e. xx.xx%
A8: All results below monitored by CEMs.
A11: Results of emissions to air that are continuously monitored (maximum and average values for each line)
A12: Substance | B12: Reference Period | C12: Emission Limit Value | D12: A1 | H12: A2
D13: Max | F13: Average | H13: Max | J13: Average
A14: Oxides of nitrogen | B14: Daily mean | C14: 200 mg/m3 | D14: =NOx!O19 -> 183 | F14: =NOx!N19 -> 176.5420699 | H14: =NOx!O34 -> 182 | J14: =NOx!N34 -> 173.1491795
B15: ½ hourly mean | C15: 400 mg/m3 | D15: =NOx!M19 -> 327 | F15: =NOx!L19 -> 176.1249094 | H15: =NOx!M34 -> 269 | J15: =NOx!L34 -> 174.9219624
A16: Particulates | B16: Daily mean | C16: 10 mg/m3 | D16: =Particulates!O19 -> 1 | F16: =Particulates!N19 -> 0.9833333333 | H16: =Particulates!O34 -> 2 | J16: =Particulates!N34 -> 0.9398915771
B17: ½ hourly mean | C17: 30 mg/m3 | D17: =Particulates!M19 -> 3 | F17: =Particulates!L190 -> 0 | H17: =Particulates!M34 -> 4 | J17: =Particulates!L34 -> 1.008897849
A18: Total Organic Carbon | B18: Daily mean | C18: 10 mg/m3 | D18: =TOC!O19 -> 1 | F18: =TOC!N19 -> 0.1888978495 | H18: =TOC!O34 -> 2 | J18: =TOC!N34 -> 0.4905837174
B19: ½ hourly mean | C19: 20 mg/m3 | D19: =TOC!M19 -> 10 | F19: =TOC!L19 -> 0.207570689 | H19: =TOC!M34 -> 20 | J19: =TOC!L34 -> 0.5362399552
A20: Hydrogen chloride | B20: Daily mean | C20: 10 mg/m3 | D20: =HCl!O19 -> 8 | F20: =HCl!N19 -> 5.437241039 | H20: =HCl!O34 -> 7 | J20: =HCl!N34 -> 5.555304019
B21: ½ hourly mean | C21: 60 mg/m3 | D21: =HCl!M19 -> 42 | F21: =HCl!L19 -> 5.417152376 | H21: =HCl!M34 -> 29 | J21: =HCl!L34 -> 5.524870072
A22: Sulphur dioxide | B22: Daily mean | C22: 50 mg/m3 | D22: ='SO2'!O19 -> 30 | F22: ='SO2'!N19 -> 12.29844086 | H22: ='SO2'!O34 -> 30 | J22: ='SO2'!N34 -> 16.24097094
B23: ½ hourly mean | C23: 200 mg/m3 | D23: ='SO2'!M19 -> 146 | F23: ='SO2'!L19 -> 12.47161888 | H23: ='SO2'!M34 -> 134 | J23: ='SO2'!L34 -> 16.10373208
A24: Carbon monoxide | B24: Daily mean | C24: 50 mg/m3 | D24: ='CO 95% 10 min'!Q19 -> 32 | F24: ='CO 95% 10 min'!P19 -> 1.326966667 | H24: ='CO 95% 10 min'!Q34 -> 34 | J24: ='CO 95% 10 min'!P34 -> 1.905416667
B25: 95%ile 10-min avg | C25: 150 mg/m3 | D25: ='CO 95% 10 min'!M19 -> 13.5 | F25: ='CO 95% 10 min'!N19 -> 1.335885833 | H25: ='CO 95% 10 min'!M34 -> 13.98 | J25: ='CO 95% 10 min'!N34 -> 1.647700633
A27: Comments :

Sheet HCl
A1: =+'Cover Page'!$B$29 -> Annual Performance Report 2020 | E1: =+'Cover Page'!$B$33 -> Ardley Energy Recovery Facility
A3: Monitoring of Hydrogen Chloride emissions | D3: Whole Installation | J3: =+A3 -> Monitoring of Hydrogen Chloride emissions | N3: Per Combustion Line | Q3: Notes:
Q4: User to add logic to complete Whole installation, Table A5:G18. From the data in Per Combustion Line, Table J6:O79, subject to No. of lines installed
A5: mg/Nm3 | B5: 1/2 Hourly Reference Periods | E5: Daily Reference Periods
A6: =+'Cover Page'!C39 -> 2020 | B6: 1/2 hourly HCl ELV | C6: Monthly 1/2 hourly mean | D6: Highest 1/2 hourly maximum | E6: Daily HCl ELV | F6: Monthly daily mean | G6: Highest daily maximum | J6: =+A6 -> 2020 | K6: mg/Nm3 | L6: Monthly 1/2 hourly mean | M6: Monthly 1/2 hourly maximum | N6: Monthly daily mean | O6: Monthly daily maximum
A7: Jan | B7: 60 | C7: =AVERAGE(L7,L22) -> 5.661290323 | D7: =MAX(M7,M22) -> 31 | E7: 10 | F7: =AVERAGE(N7,N22) -> 5.716666667 | G7: =MAX(O7,O22) -> 6 | J7: A1 | K7: Jan | L7: 5.451612903 | M7: 31 | N7: 5.533333333 | O7: 6
A8: Feb | B8: 60 | C8: =AVERAGE(L8,L23) -> 5.841346154 | D8: =MAX(M8,M23) -> 15 | E8: 10 | F8: =AVERAGE(N8,N23) -> 5.895833333 | G8: =MAX(O8,O23) -> 7 | K8: Feb | L8: 5.807692308 | M8: 14 | N8: 5.916666667 | O8: 7
A9: Mar | B9: 60 | C9: 5.935483871 | D9: 15 | E9: 10 | F9: 5.934946237 | G9: 8 | K9: Mar | L9: 5.967741935 | M9: 15 | N9: 5.966666667 | O9: 8 | Q9: Whole Installation table A5:G18:
A10: Apr | B10: 60 | C10: 5.81 | D10: 16 | E10: 10 | F10: 5.85 | G10: 7 | K10: Apr | L10: 5.75 | M10: 16 | N10: 5.83 | O10: 6 | Q10: Mean: for 1/2 hourly and daily periods calculate mean of values across all operational combustion lines for the month
A11: May | B11: 60 | C11: 5.945 | D11: 42 | E11: 10 | F11: 5.98 | G11: 8 | K11: May | L11: 6.2 | M11: 42 | N11: 6.2 | O11: 8
A12: Jun | B12: 60 | C12: 5.725 | D12: 23 | E12: 10 | F12: 5.77 | G12: 7 | K12: Jun | L12: 5.9 | M12: 23 | N12: 5.9 | O12: 7
A13: Jul | B13: 60 | C13: 5.887096774 | D13: 27 | E13: 10 | F13: 5.884946237 | G13: 7 | K13: Jul | L13: =AVERAGE('[1]EA Monthly Report - 05 October '!$E$668:$AI$668) -> 5.903225806 | M13: 27 | N13: =AVERAGE('[1]EA Monthly Report - 05 October '!$E$673:$AI$673) -> 5.903225806 | O13: 6 | Q13: Maximum: for 1/2 hourly and daily periods use the highest value across all operational combustion lines for the month
A14: Aug | B14: 60 | C14: 5.385806452 | D14: 17 | E14: 10 | F14: 5.350806452 | G14: 6 | K14: Aug | L14: =AVERAGE('[1]EA Monthly Report - 05 October '!$E$688:$AI$688) -> 5.32 | M14: 17 | N14: =AVERAGE('[1]EA Monthly Report - 05 October '!$E$693:$AI$693) -> 5.25 | O14: 6
A15: Sep | B15: 60 | C15: 5.561111111 | D15: 20 | E15: 10 | F15: 5.663571429 | G15: 6 | K15: Sep | L15: =AVERAGE('[1]EA Monthly Report - 05 October '!$E$708:$AH$708) -> 5.555555556 | M15: 20 | N15: =AVERAGE('[1]EA Monthly Report - 05 October '!$E$713:$AH$713) -> 5.72 | O15: 6
A16: Oct | B16: 60 | C16: 4.025 | D16: 20 | E16: 10 | F16: 3.81 | G16: 6 | K16: Oct | L16: 3.55 | M16: 20 | N16: 3.2 | O16: 6
A17: Nov | B17: 60 | C17: 4.42 | D17: 29 | E17: 10 | F17: 4.53 | G17: 6 | K17: Nov | L17: 3.95 | M17: 14 | N17: 4.06 | O17: 6
A18: Dec | B18: 60 | C18: =AVERAGE(L18,L33) -> 5.455 | D18: 18 | E18: 10 | F18: 5.5685 | G18: 6 | K18: Dec | L18: 5.65 | M18: 18 | N18: 5.767 | O18: 6
K19: Annual | L19: =AVERAGE(L7:L18) -> 5.417152376 | M19: =MAX(M7:M18) -> 42 | N19: =AVERAGE(N7:N18) -> 5.437241039 | O19: =MAX(O7:O18) -> 8
J21: =+A6 -> 2020 | K21: mg/Nm3 | L21: Monthly 1/2 hourly mean | M21: Monthly 1/2 hourly maximum | N21: Monthly daily mean | O21: Monthly daily maximum
J22: A2 | K22: Jan | L22: 5.870967742 | M22: 23 | N22: 5.9 | O22: 6
K23: Feb | L23: 5.875 | M23: 15 | N23: 5.875 | O23: 7
K24: Mar | L24: 5.903225806 | M24: 15 | N24: 5.903225806 | O24: 7
K25: Apr | L25: 5.87 | M25: 16 | N25: 5.87 | O25: 7
K26: May | L26: 5.69 | M26: 20 | N26: 5.76 | O26: 6
K27: Jun | L27: 5.55 | M27: 14 | N27: 5.64 | O27: 6
K28: Jul | L28: =AVERAGE('[1]EA Monthly Report - 05 October '!$E$308:$AI$308) -> 5.870967742 | M28: 14 | N28: =AVERAGE('[1]EA Monthly Report - 05 October '!$E$313:$AI$313) -> 5.866666667 | O28: 7
K29: Aug | L29: =AVERAGE('[1]EA Monthly Report - 05 October '!$E$328:$AI$328) -> 5.451612903 | M29: 15 | N29: =AVERAGE('[1]EA Monthly Report - 05 October '!$E$333:$AI$333) -> 5.451612903 | O29: 6
K30: Sep | L30: =AVERAGE('[1]EA Monthly Report - 05 October '!$E$348:$AH$348) -> 5.566666667 | M30: 17 | N30: =AVERAGE('[1]EA Monthly Report - 05 October '!$E$353:$AH$353) -> 5.607142857 | O30: 6
K31: Oct | L31: 4.5 | M31: 10 | N31: 4.42 | O31: 6
K32: Nov | L32: 4.89 | M32: 29 | N32: 5 | O32: 6
K33: Dec | L33: 5.26 | M33: 17 | N33: 5.37 | O33: 6
K34: Annual | L34: =AVERAGE(L22:L33) -> 5.524870072 | M34: =MAX(M22:M33) -> 29 | N34: =AVERAGE(N22:N33) -> 5.555304019 | O34: =MAX(O22:O33) -> 7
A48: Comments :

Sheet SO2
A1: =+'Cover Page'!$B$29 -> Annual Performance Report 2020 | E1: =+'Cover Page'!$B$33 -> Ardley Energy Recovery Facility
A3: Monitoring of Sulphur dioxide emissions | D3: Whole Installation | J3: =+A3 -> Monitoring of Sulphur dioxide emissions | N3: Per Combustion Line | Q3: Notes:
Q4: User to add logic to complete Whole installation, Table A5:G18. From the data in Per Combustion Line, Table J6:O79, subject to No. of lines installed
A5: mg/Nm3 | B5: 1/2 Hourly Reference Periods | E5: Daily Reference Periods
A6: =+'Cover Page'!C39 -> 2020 | B6: 1/2 hourly SO2 ELV | C6: Monthly 1/2 hourly mean | D6: Highest 1/2 hourly maximum | E6: Daily SO2 ELV | F6: Monthly daily mean | G6: Highest daily maximum | J6: =+A6 -> 2020 | K6: mg/Nm3 | L6: Monthly 1/2 hourly mean | M6: Monthly 1/2 hourly maximum | N6: Monthly daily mean | O6: Monthly daily maximum
A7: Jan | B7: 200 | C7: =AVERAGE(L7,L22) -> 10 | D7: =MAX(M7,M22) -> 31 | E7: 50 | F7: =AVERAGE(N7,N22) -> 10.1 | G7: =MAX(O7,O22) -> 6 | J7: A1 | K7: Jan | L7: 8.967741935 | M7: 31 | N7: 9.1 | O7: 6
A8: Feb | B8: 200 | C8: =AVERAGE(L8,L23) -> 12.39583333 | D8: =MAX(M8,M23) -> 15 | E8: 50 | F8: =AVERAGE(N8,N23) -> 12.64583333 | G8: =MAX(O8,O23) -> 7 | K8: Feb | L8: 12 | M8: 14 | N8: 12.5 | O8: 7
A9: Mar | B9: 200 | C9: 11.9516129 | D9: 15 | E9: 50 | F9: 11.92419355 | G9: 8 | K9: Mar | L9: 11.35483871 | M9: 15 | N9: 11.3 | O9: 8 | Q9: Whole Installation table A5:G18:
A10: Apr | B10: 200 | C10: 15.9 | D10: 78 | E10: 50 | F10: 15.6 | G10: 22 | K10: Apr | L10: 17.2 | M10: 75 | N10: 16.6 | O10: 19 | Q10: Mean: for 1/2 hourly and daily periods calculate mean of values across all operational combustion lines for the month
A11: May | B11: 200 | C11: 15.95 | D11: 85 | E11: 50 | F11: 15.95 | G11: 22 | K11: May | L11: 15 | M11: 85 | N11: 15 | O11: 20
A12: Jun | B12: 200 | C12: 14.84 | D12: 64 | E12: 50 | F12: 14.97 | G12: 24 | K12: Jun | L12: 10.9 | M12: 60 | N12: 10.9 | O12: 17
A13: Jul | B13: 200 | C13: =AVERAGE(L28,13) -> 15.82258065 | D13: =MAX(M28,M13) -> 70 | E13: 50 | F13: =AVERAGE(N28,N13) -> 14.41397849 | G13: =AVERAGE(O28,O13) -> 19.5 | K13: Jul | L13: =AVERAGE('[1]EA Monthly Report - 05 October '!$E$548:$AI$548) -> 10.16129032 | M13: 70 | N13: =AVERAGE('[1]EA Monthly Report - 05 October '!$E$553:$AI$553) -> 10.16129032 | O13: 14 | Q13: Maximum: for 1/2 hourly and daily periods use the highest value across all operational combustion lines for the month
A14: Aug | B14: 200 | C14: =AVERAGE(L29,13) -> 14.79032258 | D14: =MAX(M29,M14) -> 101 | E14: 50 | F14: =AVERAGE(N29,N14) -> 14.44032258 | G14: =MAX(O29,14) -> 22 | K14: Aug | L14: =AVERAGE('[1]EA Monthly Report - 05 October '!$E$568:$AI$568) -> 13.12 | M14: 101 | N14: =AVERAGE('[1]EA Monthly Report - 05 October '!$E$573:$AI$573) -> 12.3 | O14: 25
A15: Sep | B15: 200 | C15: 14.18333333 | D15: 128 | E15: 50 | F15: 13.29214286 | G15: =MAX(O30,14) -> 19 | K15: Sep | L15: =AVERAGE('[1]EA Monthly Report - 05 October '!$E$588:$AH$588) -> 12.55555556 | M15: 128 | N15: =AVERAGE('[1]EA Monthly Report - 05 October '!$E$593:$AH$593) -> 11.12 | O15: 27
A16: Oct | B16: 200 | C16: 12.95 | D16: 146 | E16: 50 | F16: 12.8 | G16: 30 | K16: Oct | L16: 10.9 | M16: 146 | N16: 10.6 | O16: 30
A17: Nov | B17: 200 | C17: 15.75 | D17: 134 | E17: 50 | F17: 16.2 | G17: 30 | K17: Nov | L17: 10.5 | M17: 83 | N17: 10.9 | O17: 28
A18: Dec | B18: 200 | C18: 18.5 | D18: 116 | E18: 50 | F18: 18.9 | G18: 29 | K18: Dec | L18: 17 | M18: 116 | N18: 17.1 | O18: 25
K19: Annual | L19: =AVERAGE(L7:L18) -> 12.47161888 | M19: =MAX(M7:M18) -> 146 | N19: =AVERAGE(N7:N18) -> 12.29844086 | O19: =MAX(O7:O18) -> 30
J21: =+A6 -> 2020 | K21: mg/Nm3 | L21: Monthly 1/2 hourly mean | M21: Monthly 1/2 hourly maximum | N21: Monthly daily mean | O21: Monthly daily maximum
J22: A2 | K22: Jan | L22: 11.03225806 | M22: 23 | N22: 11.1 | O22: 6
K23: Feb | L23: 12.79166667 | M23: 15 | N23: 12.79166667 | O23: 7
K24: Mar | L24: 12.5483871 | M24: 15 | N24: 12.5483871 | O24: 7
K25: Apr | L25: 14.6 | M25: 78 | N25: 14.6 | O25: 22
K26: May | L26: 16.9 | M26: 67 | N26: 16.9 | O26: 22
K27: Jun | L27: 18.78 | M27: 64 | N27: 19.04 | O27: 24
K28: Jul | L28: =AVERAGE('[1]EA Monthly Report - 05 October '!$E$188:$AI$188) -> 18.64516129 | M28: 52 | N28: =AVERAGE('[1]EA Monthly Report - 05 October '!$E$193:$AI$193) -> 18.66666667 | O28: 25
K29: Aug | L29: =AVERAGE('[1]EA Monthly Report - 05 October '!$E$208:$AI$208) -> 16.58064516 | M29: 70 | N29: =AVERAGE('[1]EA Monthly Report - 05 October '!$E$213:$AI$213) -> 16.58064516 | O29: 22
K30: Sep | L30: =AVERAGE('[1]EA Monthly Report - 05 October '!$E$228:$AH$228) -> 15.36666667 | M30: 120 | N30: =AVERAGE('[1]EA Monthly Report - 05 October '!$E$233:$AH$233) -> 15.46428571 | O30: 19
K31: Oct | L31: 15 | M31: 40 | N31: 15 | O31: 24
K32: Nov | L32: 21 | M32: 134 | N32: 21.5 | O32: 30
K33: Dec | L33: 20 | M33: 88 | N33: 20.7 | O33: 29
K34: Annual | L34: =AVERAGE(L22:L33) -> 16.10373208 | M34: =MAX(M22:M33) -> 134 | N34: =AVERAGE(N22:N33) -> 16.24097094 | O34: =MAX(O22:O33) -> 30
A48: Comments :

Sheet NOx
A1: =+'Cover Page'!$B$29 -> Annual Performance Report 2020 | E1: =+'Cover Page'!$B$33 -> Ardley Energy Recovery Facility
A3: Monitoring of Oxides of Nitrogen emissions | D3: Whole Installation | J3: =+A3 -> Monitoring of Oxides of Nitrogen emissions | N3: Per Combustion Line | Q3: Notes:
Q4: User to add logic to complete Whole installation, Table A5:G18. From the data in Per Combustion Line, Table J6:O79, subject to No. of lines installed
A5: mg/Nm3 | B5: 1/2 Hourly Reference Periods | E5: Daily Reference Periods
A6: =+'Cover Page'!C39 -> 2020 | B6: 1/2 hourly NOx ELV | C6: Monthly 1/2 hourly mean | D6: Highest 1/2 hourly maximum | E6: Daily NOx ELV | F6: Monthly daily mean | G6: Highest daily maximum | J6: =+A6 -> 2020 | K6: mg/Nm3 | L6: Monthly 1/2 hourly mean | M6: Monthly 1/2 hourly maximum | N6: Monthly daily mean | O6: Monthly daily maximum
A7: Jan | B7: 400 | C7: =AVERAGE(L7,L22) -> 174.05 | D7: =MAX(M7,M22) -> 225 | E7: 200 | F7: =AVERAGE(N7,N22) -> 174 | G7: =MAX(O7,O22) -> 177 | J7: A1 | K7: Jan | L7: 175.9 | M7: 225 | N7: 175.9 | O7: 177
A8: Feb | B8: 400 | C8: =AVERAGE(L8,L23) -> 171.55 | D8: =MAX(M8,M23) -> 255 | E8: 200 | F8: =AVERAGE(N8,N23) -> 172.3 | G8: =MAX(O8,O23) -> 183 | K8: Feb | L8: 175.1 | M8: 255 | N8: 176.6 | O8: 183
A9: Mar | B9: 400 | C9: 172.85 | D9: 306 | E9: 200 | F9: 172.85 | G9: 178 | K9: Mar | L9: 176.2 | M9: 306 | N9: 176.2 | O9: 178 | Q9: Whole Installation table A5:G18:
A10: Apr | B10: 400 | C10: 180.035 | D10: 228 | E10: 200 | F10: 174.315 | G10: 177 | K10: Apr | L10: 176.1 | M10: 213 | N10: 176.2 | O10: 177 | Q10: Mean: for 1/2 hourly and daily periods calculate mean of values across all operational combustion lines for the month
A11: May | B11: 400 | C11: 174.15 | D11: 242 | E11: 200 | F11: 174.32 | G11: 180 | K11: May | L11: 176.6 | M11: 242 | N11: 176.6 | O11: 180
A12: Jun | B12: 400 | C12: 175 | D12: 257 | E12: 200 | F12: 174.995 | G12: 179 | K12: Jun | L12: 176.1 | M12: 257 | N12: 176.03 | O12: 178
A13: Jul | B13: 400 | C13: 175.9193548 | D13: 327 | E13: 200 | F13: 175.994086 | G13: 183 | K13: Jul | L13: =AVERAGE('[1]EA Monthly Report - 05 October '!$E$488:$AI$488) -> 177.3548387 | M13: 327 | N13: =AVERAGE('[1]EA Monthly Report - 05 October '!$E$493:$AI$493) -> 177.3548387 | O13: 183 | Q13: Maximum: for 1/2 hourly and daily periods use the highest value across all operational combustion lines for the month
A14: Aug | B14: 400 | C14: 176.2748387 | D14: 259 | E14: 200 | F14: 176.2298387 | G14: 180 | K14: Aug | L14: =AVERAGE('[1]EA Monthly Report - 05 October '!$E$508:$AI$508) -> 176.84 | M14: 221 | N14: =AVERAGE('[1]EA Monthly Report - 05 October '!$E$513:$AI$513) -> 176.75 | O14: 180
A15: Sep | B15: 400 | C15: 181.837037 | D15: 223 | E15: 200 | F15: 175.8835714 | G15: 181 | K15: Sep | L15: =AVERAGE('[1]EA Monthly Report - 05 October '!$E$528:$AH$528) -> 176.0740741 | M15: 223 | N15: =AVERAGE('[1]EA Monthly Report - 05 October '!$E$533:$AH$533) -> 176.16 | O15: 181
A16: Oct | B16: 400 | C16: 175.3 | D16: 272 | E16: 200 | F16: 176.58 | G16: 182 | K16: Oct | L16: 176.6 | M16: 272 | N16: 177.56 | O16: 182
A17: Nov | B17: 400 | C17: 175.315 | D17: 308 | E17: 200 | F17: 176.83 | G17: 182 | K17: Nov | L17: 174.63 | M17: 308 | N17: 177.12 | O17: 182
A18: Dec | B18: 400 | C18: 174 | D18: 286 | E18: 200 | F18: 173.85 | G18: 180 | K18: Dec | L18: 176 | M18: 286 | N18: 176.03 | O18: 179
K19: Annual | L19: =AVERAGE(L7:L18) -> 176.1249094 | M19: =MAX(M7:M18) -> 327 | N19: =AVERAGE(N7:N18) -> 176.5420699 | O19: =MAX(O7:O18) -> 183
J21: =+A6 -> 2020 | K21: mg/Nm3 | L21: Monthly 1/2 hourly mean | M21: Monthly 1/2 hourly maximum | N21: Monthly daily mean | O21: Monthly daily maximum
J22: A2 | K22: Jan | L22: 172.2 | M22: 201 | N22: 172.1 | O22: 176
K23: Feb | L23: 168 | M23: 224 | N23: 168 | O23: 173
K24: Mar | L24: 169.5 | M24: 217 | N24: 169.5 | O24: 177
K25: Apr | L25: 183.97 | M25: 228 | N25: 172.43 | O25: 176
K26: May | L26: 171.7 | M26: 212 | N26: 172.04 | O26: 176
K27: Jun | L27: 173.9 | M27: 221 | N27: 173.96 | O27: 179
K28: Jul | L28: =AVERAGE('[1]EA Monthly Report - 05 October '!$E$128:$AI$128) -> 174.483871 | M28: 218 | N28: =AVERAGE('[1]EA Monthly Report - 05 October '!$E$133:$AI$133) -> 174.6333333 | O28: 177
K29: Aug | L29: =AVERAGE('[1]EA Monthly Report - 05 October '!$E$148:$AI$148) -> 175.7096774 | M29: 259 | N29: =AVERAGE('[1]EA Monthly Report - 05 October '!$E$153:$AI$153) -> 175.7096774 | O29: 177
K30: Sep | L30: =AVERAGE('[1]EA Monthly Report - 05 October '!$E$167:$AH$167) -> 187.6 | M30: 209 | N30: =AVERAGE('[1]EA Monthly Report - 05 October '!$E$173:$AH$173) -> 175.6071429 | O30: 176
K31: Oct | L31: 174 | M31: 197 | N31: 175.6 | O31: 178
K32: Nov | L32: 176 | M32: 243 | N32: 176.54 | O32: 182
K33: Dec | L33: 172 | M33: 269 | N33: 171.67 | O33: 180
K34: Annual | L34: =AVERAGE(L22:L33) -> 174.9219624 | M34: =MAX(M22:M33) -> 269 | N34: =AVERAGE(N22:N33) -> 173.1491795 | O34: =MAX(O22:O33) -> 182
A48: Comments :

Sheet TOC
A1: =+'Cover Page'!$B$29 -> Annual Performance Report 2020 | E1: =+'Cover Page'!$B$33 -> Ardley Energy Recovery Facility
A3: Monitoring of Total organic carbon emissions | D3: Whole Installation | J3: =+A3 -> Monitoring of Total organic carbon emissions | N3: Per Combustion Line | Q3: Notes:
Q4: User to add logic to complete Whole installation, Table A5:G18. From the data in Per Combustion Line, Table J6:O79, subject to No. of lines installed
A5: mg/Nm3 | B5: 1/2 Hourly Reference Periods | E5: Daily Reference Periods
A6: =+'Cover Page'!C39 -> 2020 | B6: 1/2 hourly TOC ELV | C6: Monthly 1/2 hourly mean | D6: Highest 1/2 hourly maximum | E6: Daily TOC ELV | F6: Monthly daily mean | G6: Highest daily maximum | J6: =+A6 -> 2020 | K6: mg/Nm3 | L6: Monthly 1/2 hourly mean | M6: Monthly 1/2 hourly maximum | N6: Monthly daily mean | O6: Monthly daily maximum
A7: Jan | B7: 20 | C7: =AVERAGE(L7,L22) -> 0.66 | D7: =MAX(M7,M22) -> 4 | E7: 10 | F7: =AVERAGE(N7,N22) -> 0.665 | G7: =MAX(O7,O22) -> 2 | J7: A1 | K7: Jan | L7: 0.29 | M7: 4 | N7: 0.3 | O7: 1
A8: Feb | B8: 20 | C8: =AVERAGE(L8,L23) -> 0.655 | D8: =MAX(M8,M23) -> 2 | E8: 10 | F8: =AVERAGE(N8,N23) -> 0.645 | G8: =MAX(O8,O23) -> 1 | K8: Feb | L8: 0.31 | M8: 2 | N8: 0.29 | O8: 1
A9: Mar | B9: 20 | C9: 0.5 | D9: 3 | E9: 10 | F9: 0.505 | G9: 1 | K9: Mar | L9: 0.16 | M9: 2 | N9: 0.17 | O9: 1 | Q9: Whole Installation table A5:G18:
A10: Apr | B10: 20 | C10: 0.2 | D10: 4 | E10: 10 | F10: 0 | G10: 0 | K10: Apr | L10: 0 | M10: 2 | N10: 0 | O10: 0 | Q10: Mean: for 1/2 hourly and daily periods calculate mean of values across all operational combustion lines for the month
A11: May | B11: 20 | C11: 1.05 | D11: 2 | E11: 10 | F11: 0.98 | G11: 1 | K11: May | L11: 1 | M11: 2 | N11: 1 | O11: 1
A12: Jun | B12: 20 | C12: 0.515 | D12: 5 | E12: 10 | F12: 0.53 | G12: 1 | K12: Jun | L12: 0.1 | M12: 2 | N12: 0.1 | O12: 1
A13: Jul | B13: 20 | C13: 0.5 | D13: 5 | E13: 10 | F13: 0.4983870968 | G13: 1 | K13: Jul | L13: =AVERAGE('[1]EA Monthly Report - 05 October '!$E$428:$AI$428) -> 0.09677419355 | M13: 5 | N13: =AVERAGE('[1]EA Monthly Report - 05 October '!$E$433:$AI$433) -> 0.09677419355 | O13: 1 | Q13: Maximum: for 1/2 hourly and daily periods use the highest value across all operational combustion lines for the month
A14: Aug | B14: 20 | C14: 0.2606451613 | D14: 20 | E14: 10 | F14: 0.1806451613 | G14: 1 | K14: Aug | L14: =AVERAGE('[1]EA Monthly Report - 05 October '!$E$448:$AI$448) -> 0.36 | M14: 5 | N14: =AVERAGE('[1]EA Monthly Report - 05 October '!$E$453:$AI$453) -> 0.2 | O14: 1
A15: Sep | B15: 20 | C15: 0.0537037037 | D15: 10 | E15: 10 | F15: 0.01785714286 | G15: 1 | K15: Sep | L15: =AVERAGE('[1]EA Monthly Report - 05 October '!$E$468:$AH$468) -> 0.07407407407 | M15: 3 | N15: =AVERAGE('[1]EA Monthly Report - 05 October '!$E$473:$AH$473) -> 0 | O15: 0
A16: Oct | B16: 20 | C16: 0.05 | D16: 10 | E16: 10 | F16: 0.055 | G16: 1 | K16: Oct | L16: 0.1 | M16: 10 | N16: 0.11 | O16: 1
A17: Nov | B17: 20 | C17: 0.018515 | D17: 1 | E17: 10 | F17: 0 | G17: 0 | K17: Nov | L17: 0 | M17: 1 | N17: 0 | O17: 0
A18: Dec | B18: 20 | C18: 0 | D18: 2 | E18: 10 | F18: 0 | G18: 0 | K18: Dec | L18: 0 | M18: 2 | N18: 0 | O18: 0
K19: Annual | L19: =AVERAGE(L7:L18) -> 0.207570689 | M19: =MAX(M7:M18) -> 10 | N19: =AVERAGE(N7:N18) -> 0.1888978495 | O19: =MAX(O7:O18) -> 1
J21: =+A6 -> 2020 | K21: mg/Nm3 | L21: Monthly 1/2 hourly mean | M21: Monthly 1/2 hourly maximum | N21: Monthly daily mean | O21: Monthly daily maximum
J22: A2 | K22: Jan | L22: 1.03 | M22: 3 | N22: 1.03 | O22: 2
K23: Feb | L23: 1 | M23: 2 | N23: 1 | O23: 1
K24: Mar | L24: 0.84 | M24: 3 | N24: 0.84 | O24: 1
K25: Apr | L25: 0.4 | M25: 4 | N25: 0 | O25: 0
K26: May | L26: 1.1 | M26: 2 | N26: 0.96 | O26: 1
K27: Jun | L27: 0.93 | M27: 5 | N27: 0.96 | O27: 1
K28: Jul | L28: =AVERAGE('[1]EA Monthly Report - 05 October '!$E$68:$AI$68) -> 0.9032258065 | M28: 4 | N28: =AVERAGE('[1]EA Monthly Report - 05 October '!$E$73:$AI$73) -> 0.9 | O28: 1
K29: Aug | L29: =AVERAGE('[1]EA Monthly Report - 05 October '!$E$88:$AI$88) -> 0.1612903226 | M29: 20 | N29: =AVERAGE('[1]EA Monthly Report - 05 October '!$E$93:$AI$93) -> 0.1612903226 | O29: 1
K30: Sep | L30: =AVERAGE('[1]EA Monthly Report - 05 October '!$E$108:$AH$108) -> 0.03333333333 | M30: 10 | N30: =AVERAGE('[1]EA Monthly Report - 05 October '!$E$113:$AH$113) -> 0.03571428571 | O30: 1
K31: Oct | L31: 0 | M31: 1 | N31: 0 | O31: 0
K32: Nov | L32: 0.03703 | M32: 1 | N32: 0 | O32: 0
K33: Dec | L33: 0 | M33: 2 | N33: 0 | O33: 0
K34: Annual | L34: =AVERAGE(L22:L33) -> 0.5362399552 | M34: =MAX(M22:M33) -> 20 | N34: =AVERAGE(N22:N33) -> 0.4905837174 | O34: =MAX(O22:O33) -> 2
A48: Comments :
A49: An elevated half hour average (13:30pm – 13:59pm) of Total Organic Carbon (TOC) was recorded with a measurement of 20.16 mg/m3 (Half hour permit limit 20 mg/m3) from emission point A2.

Sheet Particulates
A1: =+'Cover Page'!$B$29 -> Annual Performance Report 2020 | E1: =+'Cover Page'!$B$33 -> Ardley Energy Recovery Facility
A3: Monitoring of Particulate matter emissions | D3: Whole Installation | J3: =+A3 -> Monitoring of Particulate matter emissions | N3: Per Combustion Line | Q3: Notes:
Q4: User to add logic to complete Whole installation, Table A5:G18. From the data in Per Combustion Line, Table J6:O79, subject to No. of lines installed
A5: mg/Nm3 | B5: 1/2 Hourly Reference Periods | E5: Daily Reference Periods
A6: =+'Cover Page'!C39 -> 2020 | B6: 1/2 hourly PM ELV | C6: Monthly 1/2 hourly mean | D6: Highest 1/2 hourly maximum | E6: Daily PM ELV | F6: Monthly daily mean | G6: Highest daily maximum | J6: =+A6 -> 2020 | K6: mg/Nm3 | L6: Monthly 1/2 hourly mean | M6: Monthly 1/2 hourly maximum | N6: Monthly daily mean | O6: Monthly daily maximum
A7: Jan | B7: 30 | C7: =AVERAGE(L7,L22) -> 0.87 | D7: =MAX(M7,M22) -> 1 | E7: 10 | F7: =AVERAGE(N7,N22) -> 0.865 | G7: =MAX(O7,O22) -> 1 | J7: A1 | K7: Jan | L7: 0.9 | M7: 1 | N7: 0.9 | O7: 1
A8: Feb | B8: 30 | C8: =AVERAGE(L8,L23) -> 0.875 | D8: =MAX(M8,M23) -> 1 | E8: 10 | F8: =AVERAGE(N8,N23) -> 0.875 | G8: =MAX(O8,O23) -> 1 | K8: Feb | L8: 1 | M8: 1 | N8: 1 | O8: 1
A9: Mar | B9: 30 | C9: 0.855 | D9: 1 | E9: 10 | F9: 0.855 | G9: 1 | K9: Mar | L9: 1 | M9: 1 | N9: 1 | O9: 1 | Q9: Whole Installation table A5:G18:
A10: Apr | B10: 30 | C10: 0.9 | D10: 1 | E10: 10 | F10: 0.915 | G10: 1 | K10: Apr | L10: 0.9 | M10: 1 | N10: 0.9 | O10: 1 | Q10: Mean: for 1/2 hourly and daily periods calculate mean of values across all operational combustion lines for the month
A11: May | B11: 30 | C11: 0.965 | D11: 1 | E11: 10 | F11: 0.98 | G11: 1 | K11: May | L11: 1 | M11: 1 | N11: 1 | O11: 1
A12: Jun | B12: 30 | C12: 0.94 | D12: 1 | E12: 10 | F12: 0.96 | G12: 1 | K12: Jun | L12: 1 | M12: 1 | N12: 1 | O12: 1
A13: Jul | B13: 30 | C13: 0.9838709677 | D13: 2 | E13: 10 | F13: 0.9833333333 | G13: 1 | K13: Jul | L13: =AVERAGE('[1]EA Monthly Report - 05 October '!$E$368:$AI$368) -> 1 | M13: 1 | N13: =AVERAGE('[1]EA Monthly Report - 05 October '!$E$373:$AI$373) -> 1 | O13: 1 | Q13: Maximum: for 1/2 hourly and daily periods use the highest value across all operational combustion lines for the month
A14: Aug | B14: 30 | C14: 1.064516129 | D14: 4 | E14: 10 | F14: 1.064516129 | G14: 2 | K14: Aug | L14: =AVERAGE('[1]EA Monthly Report - 05 October '!$E$388:$AI$388) -> 1 | M14: 2 | N14: =AVERAGE('[1]EA Monthly Report - 05 October '!$E$393:$AI$393) -> 1 | O14: 1
A15: Sep | B15: 30 | C15: 1 | D15: 2 | E15: 10 | F15: =AVERAGE(N15,N30) -> 1 | G15: 1 | K15: Sep | L15: =AVERAGE('[1]EA Monthly Report - 05 October '!$E$408:$AH$408) -> 1 | M15: 2 | N15: =AVERAGE('[1]EA Monthly Report - 05 October '!$E$413:$AH$413) -> 1 | O15: 1
A16: Oct | B16: 30 | C16: 1.5 | D16: 4 | E16: 10 | F16: 1.0415 | G16: 2 | K16: Oct | L16: 1 | M16: 2 | N16: 1 | O16: 1
A17: Nov | B17: 30 | C17: 1.026 | D17: 3 | E17: 10 | F17: 1 | G17: 1 | K17: Nov | L17: 1.052 | M17: 3 | N17: 1 | O17: 1
A18: Dec | B18: 30 | C18: 1 | D18: 2 | E18: 10 | F18: 1 | G18: 1 | K18: Dec | L18: 1 | M18: 2 | N18: 1 | O18: 1
K19: Annual | L19: =AVERAGE(L7:L18) -> 0.9876666667 | M19: =MAX(M7:M18) -> 3 | N19: =AVERAGE(N7:N18) -> 0.9833333333 | O19: =MAX(O7:O18) -> 1
J21: =+A6 -> 2020 | K21: mg/Nm3 | L21: Monthly 1/2 hourly mean | M21: Monthly 1/2 hourly maximum | N21: Monthly daily mean | O21: Monthly daily maximum
J22: A2 | K22: Jan | L22: 0.84 | M22: 1 | N22: 0.83 | O22: 1
K23: Feb | L23: 0.75 | M23: 1 | N23: 0.75 | O23: 1
K24: Mar | L24: 0.71 | M24: 1 | N24: 0.71 | O24: 1
K25: Apr | L25: 0.9 | M25: 1 | N25: 0.93 | O25: 1
K26: May | L26: 0.93 | M26: 1 | N26: 0.96 | O26: 1
K27: Jun | L27: 0.88 | M27: 1 | N27: 0.92 | O27: 1
K28: Jul | L28: =AVERAGE('[1]EA Monthly Report - 05 October '!$E$8:$AI$8) -> 0.9677419355 | M28: 2 | N28: =AVERAGE('[1]EA Monthly Report - 05 October '!$E$13:$AI$13) -> 0.9666666667 | O28: 1
K29: Aug | L29: =AVERAGE('[1]EA Monthly Report - 05 October '!$E$28:$AI$28) -> 1.129032258 | M29: 4 | N29: =AVERAGE('[1]EA Monthly Report - 05 October '!$E$33:$AI$33) -> 1.129032258 | O29: 2
K30: Sep | L30: =AVERAGE('[1]EA Monthly Report - 05 October '!$E$48:$AH$48) -> 1 | M30: 2 | N30: =AVERAGE('[1]EA Monthly Report - 05 October '!$E$53:$AH$53) -> 1 | O30: 1
K31: Oct | L31: 2 | M31: 4 | N31: 1.083 | O31: 2
K32: Nov | L32: 1 | M32: 2 | N32: 1 | O32: 1
K33: Dec | L33: 1 | M33: 2 | N33: 1 | O33: 1
K34: Annual | L34: =AVERAGE(L22:L33) -> 1.008897849 | M34: =MAX(M22:M33) -> 4 | N34: =AVERAGE(N22:N33) -> 0.9398915771 | O34: =MAX(O22:O33) -> 2
A48: Comments :

Sheet CO 95% 10 min
A1: =+'Cover Page'!$B$29 -> Annual Performance Report 2020 | E1: =+'Cover Page'!$B$33 -> Ardley Energy Recovery Facility
A3: Monitoring of Carbon Monoxide (10-minute avg) | E3: Whole Installation | J3: =+A3 -> Monitoring of Carbon Monoxide (10-minute avg) | O3: Per Combustion Line | Q3: Notes: | S3: Notes:
S4: User to add logic to complete Whole installation, Table A5:H18. From the data in Per Combustion Line, Table K6:Q79, subject to No. of lines installed
A5: mg/Nm3 | B5: 10-minute Reference Periods | F5: Daily Reference Periods
A6: =+'Cover Page'!C39 -> 2020 | B6: 95%ile 10-min avg CO ELV | C6: 95%ile 10-min avg maximum | D6: Monthly CO 10-min avg mean | E6: 10-min avg maximum | F6: Daily CO ELV | G6: Monthly daily mean | H6: Highest daily maximum | K6: =+A6 -> 2020 | L6: mg/Nm3 | M6: 95%ile 10-min avg maximum | N6: Monthly CO 10-min avg mean | O6: 10-min avg maximum | P6: Monthly daily mean | Q6: Monthly daily maximum
A7: Jan | B7: 150 | C7: =MAX(N22,M7) -> 7 | D7: =AVERAGE(N7,N22) -> 0.948 | E7: =MAX(O7,O22) -> 240.39 | F7: 50 | G7: =AVERAGE(P7,P22) -> 0.948 | H7: =MAX(Q7,Q22) -> 5 | K7: A1 | L7: Jan | M7: 7 | N7: 0.096 | O7: 240.39 | P7: 0.096 | Q7: 2
A8: Feb | B8: =+B7 -> 150 | C8: =MAX(N23,M8) -> 3 | D8: 0.645 | E8: =MAX(O8,O23) -> 215.9 | F8: =+F7 -> 50 | G8: 0.645 | H8: 2 | L8: Feb | M8: 3 | N8: 0.08 | O8: 215.9 | P8: 0.08 | Q8: 2
A9: Mar | B9: =+B8 -> 150 | C9: =MAX(N24,M9) -> 4 | D9: 0.435 | E9: 337.19 | F9: =+F8 -> 50 | G9: 0.435 | H9: 3 | L9: Mar | M9: 4 | N9: 0.03 | O9: 55.47 | P9: 0.03 | Q9: 1 | S9: Whole Installation table A5:H18:
A10: Apr | B10: 150 | C10: =MAX(M10,M25) -> 1 | D10: 0.08 | E10: 334.69 | F10: 50 | G10: 0.08 | H10: 2 | L10: Apr | M10: 1 | N10: 0 | O10: 334.69 | P10: 0 | Q10: 0 | S10: Mean: for 10-min and daily periods use average of all operational combustion lines.
A11: May | B11: 150 | C11: 4 | D11: 0.15 | E11: 658.73 | F11: 50 | G11: 0.15 | H11: 3 | L11: May | M11: 4 | N11: 0.16 | O11: 532.13 | P11: 0.16 | Q11: 3
A12: Jun | B12: 150 | C12: 20 | D12: 0.54 | E12: 189.83 | F12: 50 | G12: 0.385 | H12: 13 | L12: Jun | M12: 12 | N12: 0.27 | O12: 189.83 | P12: 0.27 | Q12: 5
A13: Jul | B13: 150 | C13: 5 | D13: 0.726 | E13: 2384.58 | F13: 50 | G13: 0.726 | H13: 26 | L13: Jul | M13: 5 | N13: 0.612 | O13: 407.39 | P13: 0.612 | Q13: 5 | S13: Maximum: for 10-min and daily periods use the highest of all operational combustion lines in any month.
A14: Aug | B14: 150 | C14: 28 | D14: 4.175 | E14: 2821.42 | F14: 50 | G14: 4.07 | H14: 34 | L14: Aug | M14: 28 | N14: 4.48 | O14: 549.67 | P14: 4.27 | Q14: 9
A15: Sep | B15: 150 | C15: 10 | D15: 4 | E15: 1736.83 | F15: 50 | G15: 4 | H15: 19 | L15: Sep | M15: 10 | N15: 4.3 | O15: 1736.83 | P15: 4.3 | Q15: 19
A16: Oct | B16: 150 | C16: 97 | D16: 4.87 | E16: 2175.64 | F16: 50 | G16: 4.568 | H16: 32 | L16: Oct | M16: 13 | N16: 3.95 | O16: 2175.64 | P16: 4.053 | Q16: 32
A17: Nov | B17: 150 | C17: 73 | D17: 2.601315 | E17: 155.1 | F17: 50 | G17: 2.6223 | H17: 16 | L17: Nov | M17: 73 | N17: 2.05263 | O17: 155.1 | P17: 2.0526 | Q17: 16
A18: Dec | B18: 150 | C18: 6 | D18: 0.758 | E18: 85.07 | F18: 50 | G18: 0.765 | H18: 2 | L18: Dec | M18: 2 | N18: 0 | O18: 85.07 | P18: 0 | Q18: 0
L19: Annual | M19: =AVERAGE(M7:M18) -> 13.5 | N19: =AVERAGE(N7:N18) -> 1.335885833 | O19: =MAX(O7:O18) -> 2175.64 | P19: =AVERAGE(P7:P18) -> 1.326966667 | Q19: =MAX(Q7:Q18) -> 32
K21: =+A6 -> 2020 | L21: mg/Nm3 | M21: 95%ile 10-min avg maximum | N21: Monthly CO 10-min avg mean | O21: 10-min avg maximum | P21: Monthly daily mean | Q21: Monthly daily maximum
K22: A2 | L22: Jan | M22: 8 | N22: 1.8 | O22: 93.35 | P22: 1.8 | Q22: 5
L23: Feb | M23: 4 | N23: 1.21 | O23: 60.94 | P23: 1.21 | Q23: 2
L24: Mar | M24: 5 | N24: 0.84 | O24: 337.19 | P24: 0.84 | Q24: 3
L25: Apr | M25: 1 | N25: 0.16 | O25: 297.89 | P25: 0.16 | Q25: 2
L26: May | M26: 2 | N26: 0.14 | O26: 658.73 | P26: 0.14 | Q26: 3
L27: Jun | M27: 20 | N27: 0.81 | O27: 72.49 | P27: 0.5 | Q27: 13
L28: Jul | M28: 4 | N28: 0.84 | O28: 2384.58 | P28: 0.84 | Q28: 26
L29: Aug | M29: 9 | N29: 3.87 | O29: 2821.42 | P29: 3.87 | Q29: 34
L30: Sep | M30: 7 | N30: 3.7 | O30: 485.72 | P30: 3.7 | Q30: 8
L31: Oct | M31: 97 | N31: 5.79 | O31: 97.19 | P31: 5.083 | Q31: 6
L32: Nov | M32: 11 | N32: 3.15 | O32: 92.17 | P32: 3.192 | Q32: 6
L33: Dec | M33: 6 | N33: 1.516 | O33: 11.53 | P33: 1.53 | Q33: 2
L34: Annual | M34: =AVERAGE(M7:M33) -> 13.98 | N34: =AVERAGE(N7:N33) -> 1.647700633 | O34: =MAX(O22:O33) -> 2821.42 | P34: =AVERAGE(P22:P33) -> 1.905416667 | Q34: =MAX(Q22:Q33) -> 34
A48: Comments :
A49: Environment Agency explanatory note: The 10-minute average ELV is based on the “95th percentile”. In this case this means that 95% of the 10 minute averages in the relevant 24-hour period (i.e. 137) must be below 150 mg/Nm3, and 5% (i.e. 7) are allowed to be any value above 150 mg/Nm3. Whilst we expect operators to minimise CO emissions at all times, it is perfectly acceptable for the value of the maximum 10-minute average to be above 150 mg/Nm3, provided the 95th percentile ELV has been met for that period.
